[Event "SVK ECo-C Extraliga 2021-22"]
[Site "Slovakia"]
[Date "2022.05.08"]
[Round "8.4"]
[White "Plachetka, Jan"]
[Black "Vymazal, Bronislav"]
[Result "0-1"]
[ECO "A33"]
[WhiteElo "2311"]
[BlackElo "2385"]
[Annotator "TA"]
[PlyCount "72"]
[EventDate "2021.10.21"]
[EventType "team-tourn"]
[EventCountry "SVK"]
[SourceTitle "playchess.com"]
[Source "ChessBase"]
[SourceQuality "1"]
[TimeControl "40/5400+30:1800+30"]

{[%evp 14,72,0,9,0,-6,-9,0,-13,-15,8,-13,0,0,0,-32,-32,-66,-45,-120,-100,-100,-69,-58,-72,-83,-69,-93,-87,-92,-73,-173,-158,-167,-143,-158,-8,-75,-75,-69,-63,-146,-136,-221,-214,-214,-214,-324,-310,-305,-288,-529,-418,-963,-964,-955,-945,-949,-930,-1506,-1434]} 1. d4 {[%emt 0:00:04]} Nf6 {[%emt 0:00:30]} 2. Nf3 {[%emt 0:00:07]} e6 {[%emt 0:00:05]} 3. c4 {[%emt 0:00:59]} c5 {[%emt 0:00:29]} 4. Nc3 {[%emt 0:00:44]} cxd4 {[%emt 0:00:58]} 5. Nxd4 {[%emt 0:00:06]} Nc6 {[%emt 0:00:28]} 6. g3 {[%emt 0:01:21]} Qb6 {[%emt 0:18:15]} 7. Nb3 {[%emt 0:08:22] 7.Ndb5 is more advanced technology.} Ne5 {[%emt 0:00:11]} 8. e4 {[%emt 0:07:40]} Bb4 {[%emt 0:00:07] [#] Threatens to win with ...Nxe4. A33: Symmetrical English: 2 Nf3 Nf6 3 d4 cxd4 4 Nxd4 e6 5 Nc3 Nc6.} 9. c5 {[%emt 0:08:29]} (9. Qe2 $5 {[%cal Rf2f4]}) 9... Bxc5 {[%emt 0:08:52]} 10. Nxc5 {[%emt 0:00:46]} Qxc5 {[%emt 0:00:04] The position is equal.} 11. Be2 {[%emt 0:01:26] [#]} O-O $146 {[%emt 0:29:44]} ({Predecessor:} 11... Nc6 12. O-O d5 {0-1 (12) Dyson,J (1978)-Romano,J (1938) FICGS email 2016}) 12. O-O {[%emt 0:01:28]} d5 {[%emt 0:02:40]} 13. Be3 {[%emt 0:11:06]} Qe7 {[%emt 0:00:37]} 14. exd5 (14. f4 $5 {[%cal Rf4e5]} Nc6 15. e5 $11) 14... Rd8 {[%emt 0:01:48]} 15. Bg5 {[%emt 0:11:27]} exd5 {[%emt 0:05:37]} 16. f4 {[%emt 0:23:21]} (16. Qd4 $15) 16... Neg4 {[%emt 0:11:37] [#] And now ...d4 would win. Pair of Knights!} 17. Qd4 {[%emt 0:02:59]} ({Wrong is} 17. Bxg4 $2 Qc5+ 18. Kg2 Bxg4 $19) 17... Qe3+ {[%emt 0:06:06]} 18. Qxe3 {[%emt 0:00:08]} Nxe3 {[%emt 0:00:02]} 19. Rf2 {[%emt 0:00:18]} Bf5 {[%emt 0:01:21] Strongly threatening ...d4.} 20. Bxf6 {[%emt 0:01:15]} gxf6 {[%emt 0:00:05]} 21. Bf3 {[%emt 0:00:32]} d4 {[%emt 0:02:04][%cal Bd5d4,Bd4d3][%mdl 32]} 22. Ne4 {[%emt 0:01:00]} (22. Nd1 $17) 22... d3 $19 {[%emt 0:03:59] White must now prevent ...Bxe4.} 23. Nd2 {[%emt 0:01:08]} Rac8 {[%emt 0:00:44]} 24. Re1 {[%emt 0:02:21]} Nc4 {[%emt 0:00:51] 0x0.001d12553742dp-1022s more active pieces.} ({Better is} 24... Nc2 $17 25. Rd1 (25. Re7 $2 Nd4 $19) 25... b6) 25. b3 {[%emt 0:01:57]} (25. Bxb7 $11 Rc7 26. Rc1) 25... Nd6 $36 {[%emt 0:02:45][%mdl 2048] Keeping White busy.} 26. g4 {[%emt 0:02:33]} Bd7 {[%emt 0:00:06]} 27. a4 {[%emt 0:00:38]} ({White should try} 27. Nf1 $15) 27... f5 {[%emt 0:00:31]} 28. g5 {[%emt 0:00:39]} (28. gxf5 $17 Bxf5 29. Re5) 28... Be6 {[%emt 0:00:19]} 29. Re5 {[%emt 0:01:40]} b6 {[%emt 0:01:12]} 30. Rg2 {[%emt 0:01:17]} (30. Kg2 $142) 30... Rc1+ $19 {[%emt 0:00:46]} 31. Kf2 {[%emt 0:00:16]} Rc2 {[%emt 0:00:40][%csl LRb3,LRd2]} 32. Ke1 {[%emt 0:03:55]} (32. Kg3) 32... Rb2 {[%emt 0:00:17]} 33. Bd5 {[%emt 0:00:48]} (33. h4 $142) 33... Rc8 {[%emt 0:00:58] Black is clearly winning.} 34. Nc4 {[%emt 0:02:26]} Rb1+ {[%emt 0:00:53]} 35. Kf2 {[%emt 0:03:19]} Nxc4 {[%emt 0:00:10]} 36. Rxe6 {[%emt 0:00:42]} d2 {[%emt 0:00:45] Weighted Error Value: White=0.59/Black=0.18 (very precise)} 0-1

[Event "SVK ECo-C Extraliga 2021-22"]
[Site "Slovakia"]
[Date "2022.05.08"]
[Round "8.4"]
[White "Zvarik, Martin"]
[Black "Hros, Roman"]
[Result "1/2-1/2"]
[ECO "A43"]
[WhiteElo "2236"]
[BlackElo "2244"]
[Annotator "TA"]
[PlyCount "77"]
[EventDate "2021.10.21"]
[EventType "team-tourn"]
[EventCountry "SVK"]
[SourceTitle "playchess.com"]
[Source "ChessBase"]
[SourceQuality "1"]
[TimeControl "40/5400+30:1800+30"]

{[%evp 9,77,0,0,-2,3,-35,-26,-37,-29,-115,-102,-102,-107,-106,-98,-121,-124,-107,-129,-190,-166,-194,-200,-203,-188,-208,-119,-113,-107,-107,-22,-239,-82,-68,-71,-52,0,-55,-60,-150,-170,-154,-108,-112,-57,-62,-55,-120,3,-77,-99,-195,316,317,271,-260,-108,-122,-82,-219,-6,-8,0,0,0,0,0,0,0,0]} 1. d4 {[%emt 0:00:21]} c5 {[%emt 0:00:23]} 2. d5 {[%emt 0:00:15]} Nf6 {[%emt 0:02:20]} 3. Bg5 {[%emt 0:00:08]} g6 {[%emt 0:03:11]} 4. Nc3 {[%emt 0:01:13]} d6 {[%emt 0:00:48]} 5. Qd2 {[%emt 0:01:26]} h6 {[%emt 0:10:10] [#]} 6. Bxf6 $146 {[%emt 0:06:54] A45: Trompowsky Attack.} ({Predecessor:} 6. Bf4 g5 7. Bg3 Nh5 8. e4 Bg7 9. Bd3 Nxg3 10. hxg3 a6 11. a4 Nd7 12. f4 {½-½ (60) Hauge,L (2436)-Altounian,L (2443) Chess.com INT 2018}) 6... exf6 {[%emt 0:00:19]} 7. e3 {[%emt 0:06:59]} Bg7 {[%emt 0:04:16]} 8. Be2 {[%emt 0:08:43] Black has an edge.} a6 {[%emt 0:11:55]} 9. g4 {[%emt 0:05:03]} (9. a4 $11) 9... f5 {[%emt 0:06:46]} 10. gxf5 {[%emt 0:08:33]} Bxf5 {[%emt 0:02:20]} 11. h4 {[%emt 0:00:35]} b5 {[%emt 0:13:57]} 12. h5 {[%emt 0:05:31]} g5 {[%emt 0:03:30]} 13. Bd3 {[%emt 0:02:02]} Bc8 {[%emt 0:03:26]} 14. Nd1 {[%emt 0:13:52]} (14. f4 $17) 14... O-O {[%emt 0:03:16]} 15. c3 {[%emt 0:04:42]} Nd7 {[%emt 0:01:17]} 16. f4 {[%emt 0:08:56]} gxf4 {[%emt 0:06:08]} 17. exf4 {[%emt 0:00:46]} Nf6 {[%emt 0:00:14]} (17... Re8+ $19 18. Ne2 Nf6) 18. Ne3 $17 {[%emt 0:02:46]} Re8 {[%emt 0:06:35]} 19. O-O-O {[%emt 0:00:49]} Qb6 {[%emt 0:04:18]} (19... c4 $17 20. Bc2 b4 21. cxb4 Ne4 22. Bxe4 (22. Qg2 $2 Qf6 $19) 22... Rxe4) 20. c4 {[%emt 0:04:57]} (20. Re1 $11) 20... Rxe3 $2 {[%emt 0:07:56]} 21. Qxe3 {[%emt 0:00:08]} bxc4 {[%emt 0:00:27]} 22. Bxc4 {[%emt 0:01:07]} Bf5 {[%emt 0:01:53]} (22... Bg4 $15 23. Ne2 Re8) 23. Qb3 {[%emt 0:02:24]} (23. Qa3 $1 $11) 23... Qc7 $15 {[%emt 0:01:30][%mdl 1024] Hoping for ...Rb8. Black has compensation.} 24. Rh2 {[%emt 0:02:09]} (24. Ne2 $15) 24... Rb8 $36 {[%emt 0:00:24][%mdl 2048] Keeping White busy.} 25. Qa3 {[%emt 0:01:38] [#]} Rb4 {[%emt 0:02:27]} (25... Nxh5 $142 $1 {[%cal Ob8b4][%mdl 512]} 26. Re1 (26. Rxh5 $2 Bxb2+ 27. Qxb2 Rxb2 $19) (26. Qe3 Qa5) 26... Qb7 $1) 26. Bd3 {[%emt 0:04:10]} Bg4 {[%emt 0:02:14] This bishop pair is nice.} (26... Rxf4 27. Qxa6 Qb8 28. Bxf5 Rxf5 29. Nh3 $14) (26... Bd7 $1 $17 {aiming for ...Ra4.} 27. Rg2 (27. Bxa6 $2 Ra4 $19) 27... Ng4) 27. Be2 $1 $15 {[%emt 0:01:25]} Qd7 {[%emt 0:00:35] Strongly threatening ...Qf5.} (27... Rxf4 28. Qxa6 Qb8 29. Bxg4 Nxg4 30. Re2 $11) 28. Rg2 {[%emt 0:02:18]} ({White should try} 28. Bxg4 $15 Qxg4 29. Qf3) 28... Ra4 {[%emt 0:01:16]} (28... Rxf4 $6 29. Qxa6 Qe8 30. Bxg4 (30. Qxd6 Qe3+ 31. Kb1 Qe4+ 32. Ka1 Qxg2 $15) 30... Nxg4 31. Re2 $11 (31. Qxd6 $2 Rc4+ 32. Rc2 Rxc2+ 33. Kxc2 Ne3+ 34. Kd3 c4+ 35. Kd2 c3+ 36. Kd3 Nxd1 $19)) (28... Qf5 $17 29. Qe3 Kf8) 29. Qg3 {[%emt 0:03:27]} (29. Bxg4 $11 {remains equal.} Nxg4 30. Qg3) 29... Rxa2 $17 {[%emt 0:00:36]} (29... Qf5 30. Bxg4 Rc4+ 31. Kd2 Ne4+ 32. Ke1 Nxg3 33. Bxf5 Nxf5 34. Rd3 $14) 30. Qb3 {[%emt 0:01:15]} (30. Bxg4 $17 Qa4 31. Bf5 Ra1+ 32. Bb1 Rxb1+ 33. Kxb1 Qxd1+ 34. Ka2 Qxd5+ 35. Kb1 Qe4+ 36. Ka2 Nxh5 37. Qg4) 30... Ra4 $4 {[%emt 0:00:29][%mdl 8192]} (30... Ra1+ $19 {and life is good for Black.} 31. Kd2 Ra4) 31. Bxg4 $18 {[%emt 0:00:31]} Nxg4 {[%emt 0:00:27] [#]} 32. Nh3 $4 {[%emt 0:00:51][%mdl 8192] [#]} (32. Rxg4 $1 $18 {[%mdl 512] was the only winning move.} Ra1+ 33. Kd2 Qxg4 34. Rxa1 Qxf4+ 35. Qe3 Qb4+ 36. Kd1) 32... Rb4 {[%emt 0:00:32]} (32... c4 $1 $19 {[%cal Rc4b3] is more deadly.} 33. Qg3 (33. Qb8+ $2 Kh7 $19) 33... Ra1+ 34. Kd2 c3+ 35. bxc3 Ra2+ 36. Kc1 Rxg2 37. Qxg2 Ne3) 33. Qd3 $17 {[%emt 0:00:34]} f5 {[%emt 0:00:25] ...Qa4 is the strong threat.} 34. Rdd2 {[%emt 0:00:28]} (34. Rgd2 $17) 34... Qa4 $2 {[%emt 0:00:30]} ({Black should play} 34... c4 $19 35. Qe2 c3 36. bxc3 Re4 37. Qxa6 Re1+ 38. Kb2 (38. Rd1 $2 Rxd1+ 39. Kxd1 Ne3+ 40. Kd2 Nxg2 $19) 38... Qc7) 35. Kb1 $11 {[%emt 0:00:19] The position is equal.} ({But not} 35. Qxf5 $2 Qa1+ 36. Qb1 Rc4+ 37. Rc2 Bxb2+ 38. Kd2 Rd4+ 39. Ke2 Qxb1 $19) 35... c4 {[%emt 0:00:32]} 36. Qxf5 {[%emt 0:00:27]} Rxb2+ $1 {[%emt 0:00:34]} 37. Rxb2 {[%emt 0:00:05] Rb8+ would kill now. Really sharp!} Qd1+ {[%emt 0:00:08]} 38. Ka2 {[%emt 0:00:04] Threatening mate with Rb8+.} Qa4+ {[%emt 0:00:03]} 39. Kb1 {[%emt 0:00:04] Weighted Error Value: White=0.57/Black=0.55} 1/2-1/2

[Event "SVK ECo-C Extraliga 2021-22"]
[Site "Slovakia"]
[Date "2022.05.08"]
[Round "8.5"]
[White "Manik, Mikulas"]
[Black "Roubalik, Jakub"]
[Result "1/2-1/2"]
[ECO "C84"]
[WhiteElo "2368"]
[BlackElo "2389"]
[Annotator "TA"]
[PlyCount "35"]
[EventDate "2021.10.21"]
[EventType "team-tourn"]
[EventCountry "SVK"]
[SourceTitle "playchess.com"]
[Source "ChessBase"]
[SourceQuality "1"]
[TimeControl "40/5400+30:1800+30"]

{[%evp 18,35,0,0,0,0,0,0,10,8,8,0,5,11,5,14,17,9,18,-6]} 1. e4 {[%emt 0:00:02]} e5 {[%emt 0:00:11]} 2. Nf3 {[%emt 0:00:05]} Nc6 {[%emt 0:00:07]} 3. Bb5 {[%emt 0:00:08][%cal Bf1b5,Bb5a4,Ba4b3][%mdl 32]} a6 {[%emt 0:00:09]} 4. Ba4 {[%emt 0:00:05]} Nf6 {[%emt 0:00:11]} 5. O-O {[%emt 0:00:05]} Be7 {[%emt 0:00:10]} 6. d3 {[%emt 0:00:15]} b5 {[%emt 0:00:15]} 7. Bb3 {[%emt 0:00:02]} d6 {[%emt 0:00:26]} 8. a3 {[%emt 0:00:27]} O-O {[%emt 0:00:48]} 9. Nc3 {[%emt 0:00:11]} Bg4 {[%emt 0:05:28]} 10. Be3 {[%emt 0:00:09] The position is equal.} Nd4 {[%emt 0:02:07] C84: Closed Ruy Lopez: Unusual White 6th moves.} 11. Bxd4 {[%emt 0:00:09]} exd4 {[%emt 0:00:02]} 12. Nd5 {[%emt 0:00:10]} c5 {[%emt 0:01:10] 12...Nxd5 is a critical line.} 13. h3 {[%emt 0:11:00]} Be6 {[%emt 0:02:46]} 14. Nf4 {[%emt 0:00:10] Pair of Knights!} Bxb3 {[%emt 0:02:10]} 15. cxb3 {[%emt 0:00:03]} Re8 {[%emt 0:03:31]} 16. b4 {[%emt 0:12:24]} Bf8 {[%emt 0:01:57] [#]} 17. Qb3 $146 {[%emt 0:03:02]} ({Predecessor:} 17. Re1 g6 18. g4 Rc8 19. a4 c4 20. axb5 axb5 21. Nxd4 Bh6 22. Ng2 Bg7 23. Nf3 cxd3 24. Qxd3 {1-0 (51) Shomoev,A (2561)-Li,R (2366) Ho Chi Minh City 2016}) 17... Rc8 {[%emt 0:02:32]} 18. Nd5 {[%emt 0:23:26] Not much happened in this game.  Weighted Error Value: White=0.03 (flawless) /Black=0.04 (flawless)} (18. Ng5 c4 19. Qd1 d5 $17) 1/2-1/2

[Event "SVK ECo-C Extraliga 2021-22"]
[Site "Slovakia"]
[Date "2022.05.08"]
[Round "8.5"]
[White "Vass, Frantisek"]
[Black "Jablonicky, Martin"]
[Result "0-1"]
[ECO "A45"]
[WhiteElo "2311"]
[BlackElo "2377"]
[Annotator "TA"]
[PlyCount "92"]
[EventDate "2021.10.21"]
[EventType "team-tourn"]
[EventCountry "SVK"]
[SourceTitle "playchess.com"]
[Source "ChessBase"]
[SourceQuality "1"]
[TimeControl "40/5400+30:1800+30"]

{[%evp 9,92,-12,-16,-13,0,13,13,-16,0,0,0,0,0,-6,-4,-20,-17,-28,-12,-30,-21,-32,-29,-22,-18,-32,0,-2,22,29,19,20,28,22,40,8,27,0,0,-25,-45,-29,-37,-47,-14,-27,-25,-25,-29,-35,0,-260,-258,-259,-250,-458,-19,-29,-31,-25,-25,-20,7,0,0,0,0,-87,-12,-111,-97,-97,-97,-243,-101,-108,-125,-628,-634,-610,-622,-599,-584,-593,-315]} 1. d4 {[%emt 0:00:07]} Nf6 {[%emt 0:00:18]} 2. Bg5 {[%emt 0:00:34]} g6 {[%emt 0:00:51]} 3. Bxf6 {[%emt 0:00:31]} exf6 {[%emt 0:00:05]} 4. g3 {[%emt 0:00:35]} h5 {[%emt 0:00:05] [#]} 5. Nf3 $146 {[%emt 0:01:40]} ({Predecessor:} 5. h4 Bg7 6. Bg2 O-O 7. e3 Re8 8. Ne2 f5 9. O-O d6 10. c4 Nd7 11. Nd2 Nf6 12. Rb1 {0-1 (19) Rengifo Blancas,R (2131)-Osinovsky,S (2241) Chess.com INT 2020}) 5... d5 {[%emt 0:00:46]} 6. Bg2 {[%emt 0:01:04] A45: Trompowsky Attack.} Bd6 {[%emt 0:00:06]} 7. c4 {[%emt 0:01:02]} dxc4 {[%emt 0:07:09]} 8. Nbd2 {[%emt 0:04:52] The position is equal.} O-O {[%emt 0:08:00]} 9. O-O {[%emt 0:01:41]} Re8 {[%emt 0:03:57]} 10. Nxc4 {[%emt 0:01:32]} Bf8 {[%emt 0:00:06]} 11. Re1 {[%emt 0:06:06]} Nd7 {[%emt 0:00:43]} 12. e4 {[%emt 0:04:52]} Nb6 {[%emt 0:00:05]} 13. Qc2 {[%emt 0:03:17]} c6 {[%emt 0:01:08]} 14. a3 {[%emt 0:09:20]} f5 {[%emt 0:08:34]} 15. e5 {[%emt 0:35:47]} Nxc4 {[%emt 0:00:05]} 16. Qxc4 {[%emt 0:00:03]} Be6 {[%emt 0:00:07]} 17. Qc3 {[%emt 0:00:29]} Bd5 {[%emt 0:00:19]} 18. Rad1 {[%emt 0:00:36]} Qb6 {[%emt 0:02:04]} 19. Nd2 {[%emt 0:02:10][%cal Bf3d2,Bd2c4,Bc4e3][%mdl 32]} Be6 {[%emt 0:10:57]} 20. Nc4 {[%emt 0:05:13]} Qd8 {[%emt 0:12:25]} 21. Ne3 {[%emt 0:03:15]} Rc8 {[%emt 0:00:24][%cal Of5f4]} 22. b4 {[%emt 0:01:33]} Re7 {[%emt 0:01:38]} (22... f4 {is interesting.} 23. gxf4 Qh4 24. d5 cxd5 25. Qd3 Qxf4 26. Nxd5 Bxd5 27. Bxd5 Kh7) 23. Qb2 {[%emt 0:02:10]} Rd7 {[%emt 0:01:13]} 24. b5 {[%emt 0:03:38]} Qa5 {[%emt 0:02:35][%csl LRa3,LRb5]} 25. bxc6 {[%emt 0:02:09]} bxc6 {[%emt 0:00:04]} 26. Nc2 {[%emt 0:01:48]} Qa4 {[%emt 0:02:22]} 27. Rd3 {[%emt 0:03:18]} Rcd8 {[%emt 0:01:18]} 28. Rc3 {[%emt 0:01:55] Against c5} c5 {[%emt 0:02:02]} 29. dxc5 {[%emt 0:00:28]} Rd1 {[%emt 0:00:05][%cal Oa4c2]} 30. Qb4 $2 {[%emt 0:01:24][%mdl 8192]} (30. Bf3 $11 {and White has nothing to worry.} R1d2 31. Qb4 Rxc2 32. Qxa4 Rxc3 33. Rd1) 30... Rxe1+ $1 $19 {[%emt 0:01:46]} 31. Nxe1 {[%emt 0:00:04]} Qd1 {[%emt 0:00:21]} 32. Kf1 {[%emt 0:00:37]} (32. Re3 Qc1 33. Qa5) 32... Rd4 $2 {[%emt 0:01:52]} (32... Rd2 $19 {( -> ...Qe2+)} 33. Bf3 Qa1) 33. Bf3 $11 {[%emt 0:01:39] Prevents Qe2+.} Qd2 {[%emt 0:01:56]} 34. Rc2 {[%emt 0:01:02]} Rxb4 {[%emt 0:03:44]} ({Don't take} 34... Qxb4 35. axb4 f4 36. b5 $14) 35. Rxd2 {[%emt 0:00:08]} Rc4 $36 {[%emt 0:00:06][%mdl 2048] White is under pressure.} (35... Rb1 $5 {[%cal Rf8c5]}) 36. c6 {[%emt 0:01:16]} Bxa3 {[%emt 0:00:48]} 37. Nd3 {[%emt 0:00:18] Prevents Rc1+.} g5 {[%emt 0:04:10][%cal Bg6g5,Bg5g4][%mdl 32] Prevents Nf4.} 38. Ke2 {[%emt 0:00:35]} (38. h4 $11) 38... a5 {[%emt 0:01:30]} (38... g4 $1 $17 {[%cal Rg4f3]} 39. Bg2 Rc3) 39. h4 {[%emt 0:00:39] [#]} (39. Nb2 $11 {remains equal.} Rc3 40. Rd8+ Kg7 41. Nd3) 39... g4 $1 $17 {[%emt 0:01:00]} 40. Bg2 {[%emt 0:00:04] [#]} Rc3 $1 {[%emt 0:00:08]} 41. Nb2 {[%emt 0:05:58]} (41. Rd1 $17 {is a better defense.}) 41... Bb4 {[%emt 0:07:27] This bishop pair is nice.} (41... Kg7 $19 {[%cal Oa5a4] aiming for ...a4!} 42. Nd3 Bb3) 42. Nd3 {[%emt 0:12:16]} Bc4 {[%emt 0:03:06] Strongly threatening ...Ba6.} 43. Ke3 $2 {[%emt 0:00:29][%mdl 8192]} (43. c7 $17 Kg7 44. c8=Q Bxd3+ 45. Rxd3 Rxc8 46. Rd7) 43... Bc5+ $19 {[%emt 0:00:10] Black is clearly winning.} 44. Kf4 {[%emt 0:00:37]} Bf8 {[%emt 0:00:24] White must now prevent ...Bh6+.} ({Weaker is} 44... Rxd3 45. c7 Rxd2 46. c8=Q+ Bf8 47. Qxc4 $18) 45. Kg5 {[%emt 0:00:40] And now Nf4 would win.} Bxd3 {[%emt 0:00:43]} 46. c7 {[%emt 0:03:00][%cal Od2d3]} Be4 {[%emt 0:04:02] Weighted Error Value: White=0.54/Black=0.27 (precise)} 0-1

[Event "SVK ECo-C Extraliga 2021-22"]
[Site "Slovakia"]
[Date "2022.05.09"]
[Round "8.5"]
[White "Halak, Miklos"]
[Black "Pacher, Milan"]
[Result "1/2-1/2"]
[ECO "C47"]
[WhiteElo "2247"]
[BlackElo "2394"]
[Annotator "TA"]
[PlyCount "60"]
[EventDate "2021.10.21"]
[EventType "team-tourn"]
[EventCountry "SVK"]
[SourceTitle "playchess.com"]
[Source "ChessBase"]
[SourceQuality "1"]
[TimeControl "40/5400+30:1800+30"]

{[%evp 14,60,10,6,0,0,13,0,10,0,0,3,8,2,0,0,0,0,0,0,0,-8,0,0,0,0,25,0,0,0,0,0,25,52,13,0,0,0,0,0,0,0,0,0,0,0,0,0,0]} 1. e4 {[%emt 0:00:10]} e5 {[%emt 0:00:04]} 2. Nf3 {[%emt 0:00:16]} Nc6 {[%emt 0:00:04]} 3. Nc3 {[%emt 0:00:23]} Nf6 {[%emt 0:00:04]} 4. d4 {[%emt 0:00:16]} exd4 {[%emt 0:00:02]} 5. Nxd4 {[%emt 0:00:06]} Bb4 {[%emt 0:00:04]} 6. Nxc6 {[%emt 0:00:22]} bxc6 {[%emt 0:00:01]} 7. Bd3 {[%emt 0:00:30]} d5 {[%emt 0:00:04]} 8. exd5 {[%emt 0:00:16]} O-O {[%emt 0:00:03] The modern move. C47: Scotch Four Knights and Four Knights with 4 g3.} 9. O-O {[%emt 0:00:25]} Bg4 {[%emt 0:00:05]} 10. Be2 {[%emt 0:01:42]} Bxe2 {[%emt 0:00:04]} 11. Nxe2 {[%emt 0:00:23]} cxd5 {[%emt 0:00:04]} 12. Bg5 {[%emt 0:01:59]} Be7 {[%emt 0:00:04]} 13. Nd4 {[%emt 0:00:53]} Qd7 {[%emt 0:00:35] Prevents Nf5.} 14. Qf3 {[%emt 0:03:09]} Ne4 {[%emt 0:02:54]} 15. Bxe7 {[%emt 0:02:33]} Qxe7 {[%emt 0:00:01]} 16. Rad1 {[%emt 0:00:54] Against Nd2} Rfe8 {[%emt 0:01:20] [#]} 17. b3 $146 {[%emt 0:10:21]} ({Predecessor:} 17. c3 c5 18. Nf5 Qe5 19. Ng3 Nf6 20. Rd2 g6 21. h3 Kg7 22. Rfd1 Rab8 23. b3 {0-1 (37) Lugovskoy,M (2420)-Nihal,S (2620) Chess.com INT 2020}) 17... c5 {[%emt 0:06:09]} 18. Nf5 {[%emt 0:02:25][%csl LRd5,LRe7]} Qe6 {[%emt 0:02:25]} 19. Ng3 {[%emt 0:11:33]} ({But not} 19. Qg4 g6 20. Ne3 f5 $17) 19... d4 {[%emt 0:09:47]} 20. Nxe4 {[%emt 0:07:29]} (20. Rde1 {looks sharper.} Ng5 21. Qd1 Qd5 22. Qg4) 20... Qxe4 {[%emt 0:01:39]} 21. Qxe4 {[%emt 0:00:09]} Rxe4 $11 {[%emt 0:00:02][%mdl 4096] Endgame KRR-KRR} 22. Rfe1 {[%emt 0:00:18]} Rae8 {[%emt 0:00:20]} 23. Rxe4 {[%emt 0:02:59]} Rxe4 {[%emt 0:00:02] KR-KR} 24. Kf1 {[%emt 0:00:24][%cal Oc2c3] The position is equal.} f5 {[%emt 0:01:51]} 25. c3 {[%emt 0:03:53]} dxc3 {[%emt 0:02:22]} 26. Rc1 {[%emt 0:00:18]} c4 {[%emt 0:00:04]} 27. Rxc3 {[%emt 0:04:35]} cxb3 {[%emt 0:00:04]} 28. axb3 {[%emt 0:00:12]} g6 {[%emt 0:00:05]} 29. Rc7 {[%emt 0:01:08]} Rb4 {[%emt 0:00:03]} 30. Rxa7 {[%emt 0:00:06]} Rxb3 {[%emt 0:00:04] A balanced but interesting game.  Weighted Error Value: White=0.03 (flawless) /Black=0.04 (flawless)} 1/2-1/2